[Event "*** Titled Tuesday Blitz"]
[Site "Chess.com"]
[Date "2019.08.06"]
[Round "6"]
[White "ChessFunMaker"]
[Black "doons21"]
[Result "1-0"]
[WhiteElo "2235"]
[BlackElo "2575"]
[TimeControl "180+2"]
[EndTime "14:23:12 PDT"]
[Termination "ChessFunMaker won on time"]

1. c4 {[%clk 0:03:00.8]} 1... Nf6 {[%clk 0:03:00.4]} 2. g3 {[%clk 0:03:02.1]}
2... g6 {[%clk 0:03:02.3]} 3. Bg2 {[%clk 0:03:03.5]} 3... Bg7 {[%clk 0:03:03.9]}
4. Nc3 {[%clk 0:03:05.4]} 4... O-O {[%clk 0:03:05.3]} 5. e4 {[%clk 0:03:07]}
5... c5 {[%clk 0:02:43.8]} 6. Nge2 {[%clk 0:03:08.3]} 6... Nc6 {[%clk
0:02:44.9]} 7. O-O {[%clk 0:03:09.9]} 7... Ne8 {[%clk 0:02:46.4]} 8. d3 {[%clk
0:02:52.2]} 8... Nc7 {[%clk 0:02:46.8]} 9. Be3 {[%clk 0:02:53.3]} 9... Ne6
{[%clk 0:02:46.7]} 10. Qd2 {[%clk 0:02:54.8]} 10... Ned4 {[%clk 0:02:19.8]} 11.
Bh6 {[%clk 0:02:55.9]} 11... f5 {[%clk 0:02:18.4]} 12. Bxg7 {[%clk 0:02:45.6]}
12... Kxg7 {[%clk 0:02:19.2]} 13. exf5 {[%clk 0:02:31.8]} 13... gxf5 {[%clk
0:02:18.6]} 14. Nxd4 {[%clk 0:01:55.2]} 14... Nxd4 {[%clk 0:02:17.3]} 15. Qg5+
{[%clk 0:01:55.3]} 15... Kh8 {[%clk 0:02:17.2]} 16. Nd5 {[%clk 0:00:47.6]} 16...
Nc6 {[%clk 0:01:46]} 17. Qh6 {[%clk 0:00:36.5]} 17... Rf7 {[%clk 0:00:56.8]} 18.
Rfe1 {[%clk 0:00:26.9]} 18... e6 {[%clk 0:00:57.4]} 19. Nf4 {[%clk 0:00:16.5]}
19... Nd4 {[%clk 0:00:58.4]} 20. Rac1 {[%clk 0:00:05.2]} 20... Qf6 {[%clk
0:00:51.2]} 21. Qh5 {[%clk 0:00:04.4]} 21... Rb8 {[%clk 0:00:42.9]} 22. a3
{[%clk 0:00:04.9]} 22... a5 {[%clk 0:00:41.6]} 23. b4 {[%clk 0:00:03.5]} 23...
cxb4 {[%clk 0:00:37.7]} 24. axb4 {[%clk 0:00:05.4]} 24... axb4 {[%clk
0:00:36.6]} 25. Rb1 {[%clk 0:00:04]} 25... b3 {[%clk 0:00:37.3]} 26. Ne2 {[%clk
0:00:03.6]} 26... Nxe2+ {[%clk 0:00:11.5]} 27. Rxe2 {[%clk 0:00:05]} 27... b5
{[%clk 0:00:12.4]} 28. cxb5 {[%clk 0:00:04.8]} 28... Rxb5 {[%clk 0:00:11.6]} 29.
Reb2 {[%clk 0:00:06.3]} 29... f4 {[%clk 0:00:10.2]} 30. Qxb5 {[%clk 0:00:06.2]}
30... fxg3 {[%clk 0:00:10.8]} 31. fxg3 {[%clk 0:00:05.8]} 31... Kg7 {[%clk
0:00:12.2]} 32. Qxb3 {[%clk 0:00:06]} 32... Qd4+ {[%clk 0:00:13.7]} 33. Kh1
{[%clk 0:00:06.8]} 33... Ba6 {[%clk 0:00:15.6]} 34. Rc2 {[%clk 0:00:07.5]} 34...
Bxd3 {[%clk 0:00:16]} 35. Rd2 {[%clk 0:00:08.7]} 1-0

[Event "*** Titled Tuesday Blitz"]
[Site "Chess.com"]
[Date "2019.08.06"]
[Round "6"]
[White "Saloni1299"]
[Black "Wolverine_master"]
[Result "1-0"]
[WhiteElo "2048"]
[BlackElo "2109"]
[TimeControl "180+2"]
[EndTime "14:23:16 PDT"]
[Termination "Saloni1299 won on time"]

1. e4 {[%clk 0:03:01.9]} 1... c5 {[%clk 0:03:00.4]} 2. Nf3 {[%clk 0:03:03]} 2...
g6 {[%clk 0:03:01.5]} 3. d4 {[%clk 0:03:03.9]} 3... cxd4 {[%clk 0:03:02.6]} 4.
Nxd4 {[%clk 0:03:05.5]} 4... Bg7 {[%clk 0:03:03.8]} 5. Nc3 {[%clk 0:03:06.6]}
5... Nc6 {[%clk 0:03:05.2]} 6. Be3 {[%clk 0:03:07.3]} 6... Nf6 {[%clk
0:03:05.5]} 7. Bc4 {[%clk 0:03:08]} 7... Qa5 {[%clk 0:03:06.6]} 8. O-O {[%clk
0:03:04.1]} 8... O-O {[%clk 0:03:06]} 9. Bb3 {[%clk 0:03:04.8]} 9... d6 {[%clk
0:03:04.6]} 10. h3 {[%clk 0:03:03.8]} 10... Bd7 {[%clk 0:03:03.5]} 11. Re1
{[%clk 0:03:03.8]} 11... Nxd4 {[%clk 0:03:03.3]} 12. Bxd4 {[%clk 0:03:02.1]}
12... Bc6 {[%clk 0:03:04.7]} 13. Nd5 {[%clk 0:02:37.7]} 13... Bxd5 {[%clk
0:02:58.9]} 14. exd5 {[%clk 0:02:39.2]} 14... Rfe8 {[%clk 0:02:58.3]} 15. Qd3
{[%clk 0:02:33.5]} 15... Nd7 {[%clk 0:02:54.8]} 16. Bxg7 {[%clk 0:02:30.6]}
16... Kxg7 {[%clk 0:02:56.7]} 17. f4 {[%clk 0:02:31.5]} 17... Kg8 {[%clk
0:02:44.4]} 18. Re3 {[%clk 0:02:24.7]} 18... Qb6 {[%clk 0:02:44.4]} 19. Re1
{[%clk 0:02:18.6]} 19... Nc5 {[%clk 0:02:44.4]} 20. Qc3 {[%clk 0:02:11.1]} 20...
Rac8 {[%clk 0:02:41.9]} 21. Kh2 {[%clk 0:02:04]} 21... Nxb3 {[%clk 0:02:26.2]}
22. Qxb3 {[%clk 0:02:01.1]} 22... Qxb3 {[%clk 0:02:27.1]} 23. cxb3 {[%clk
0:01:53.9]} 23... Kf8 {[%clk 0:02:26]} 24. Rc3 {[%clk 0:01:51]} 24... Rc5 {[%clk
0:02:25.5]} 25. Rxc5 {[%clk 0:01:47.4]} 25... dxc5 {[%clk 0:02:27.4]} 26. Rd1
{[%clk 0:01:39.8]} 26... Rd8 {[%clk 0:02:28.1]} 27. Kg3 {[%clk 0:01:41.1]} 27...
Rd6 {[%clk 0:02:27.4]} 28. Kf3 {[%clk 0:01:40.9]} 28... Ke8 {[%clk 0:02:08.5]}
29. Rd3 {[%clk 0:01:36.3]} 29... Kd7 {[%clk 0:02:04.8]} 30. Ke4 {[%clk
0:01:36.5]} 30... Ra6 {[%clk 0:02:04.7]} 31. a3 {[%clk 0:01:36.3]} 31... Rb6
{[%clk 0:01:58.1]} 32. Ke5 {[%clk 0:01:33.3]} 32... f6+ {[%clk 0:01:57.5]} 33.
Ke4 {[%clk 0:01:33.6]} 33... Kd6 {[%clk 0:01:58.9]} 34. g4 {[%clk 0:01:32]}
34... a5 {[%clk 0:01:50.8]} 35. a4 {[%clk 0:01:31.9]} 35... Rb4+ {[%clk
0:01:50.3]} 36. Kf3 {[%clk 0:01:26.6]} 36... c4 {[%clk 0:01:43.8]} 37. bxc4
{[%clk 0:01:22.2]} 37... Rxb2 {[%clk 0:01:38.6]} 38. Ke4 {[%clk 0:01:20.8]}
38... Rb4 {[%clk 0:01:39.1]} 39. Kd4 {[%clk 0:01:22.1]} 39... Rxa4 {[%clk
0:01:37.8]} 40. Rb3 {[%clk 0:01:22.2]} 40... Rb4 {[%clk 0:01:37.4]} 41. Rxb4
{[%clk 0:01:20]} 41... axb4 {[%clk 0:01:38.6]} 42. c5+ {[%clk 0:01:19.8]} 42...
Kd7 {[%clk 0:00:33.7]} 43. f5 {[%clk 0:01:16.5]} 43... Kc7 {[%clk 0:00:14.9]}
44. Kc4 {[%clk 0:01:16.9]} 44... b6 {[%clk 0:00:15.7]} 45. c6 {[%clk 0:01:15.4]}
45... gxf5 {[%clk 0:00:02.3]} 46. gxf5 {[%clk 0:01:15.4]} 46... b5+ {[%clk
0:00:02.4]} 47. Kxb4 {[%clk 0:01:16.6]} 47... Kb6 {[%clk 0:00:03.9]} 48. h4
{[%clk 0:01:12.1]} 48... h5 {[%clk 0:00:04.4]} 49. Kb3 {[%clk 0:01:11.3]} 49...
Kc7 {[%clk 0:00:04.7]} 50. Kc3 {[%clk 0:01:11.2]} 50... Kb6 {[%clk 0:00:05.9]}
51. Kb4 {[%clk 0:01:12.3]} 51... Ka6 {[%clk 0:00:03.7]} 52. Kc5 {[%clk
0:01:10.5]} 1-0

[Event "*** Titled Tuesday Blitz"]
[Site "Chess.com"]
[Date "2019.08.06"]
[Round "6"]
[White "IakovUlivar"]
[Black "GMKrikor"]
[Result "0-1"]
[WhiteElo "2517"]
[BlackElo "2660"]
[TimeControl "180+2"]
[EndTime "14:23:17 PDT"]
[Termination "GMKrikor won on time"]

1. e4 {[%clk 0:03:01.9]} 1... e5 {[%clk 0:02:55.7]} 2. Nf3 {[%clk 0:03:02.3]}
2... Nc6 {[%clk 0:02:53]} 3. Bc4 {[%clk 0:03:01.7]} 3... Bc5 {[%clk 0:02:53.2]}
4. O-O {[%clk 0:02:59.3]} 4... Nf6 {[%clk 0:02:53.5]} 5. d3 {[%clk 0:03:00.6]}
5... O-O {[%clk 0:02:50.7]} 6. Re1 {[%clk 0:02:52.3]} 6... Ng4 {[%clk
0:02:48.2]} 7. Re2 {[%clk 0:02:48.4]} 7... Kh8 {[%clk 0:02:47.6]} 8. c3 {[%clk
0:02:44.6]} 8... d6 {[%clk 0:02:43.5]} 9. d4 {[%clk 0:02:43.6]} 9... Bb6 {[%clk
0:02:43.4]} 10. h3 {[%clk 0:02:22.1]} 10... Nh6 {[%clk 0:02:21.6]} 11. Bg5
{[%clk 0:02:16.1]} 11... Qe8 {[%clk 0:02:17.6]} 12. Na3 {[%clk 0:01:54.8]} 12...
f5 {[%clk 0:02:05.2]} 13. Bxh6 {[%clk 0:01:41.1]} 13... gxh6 {[%clk 0:02:02.8]}
14. Bd5 {[%clk 0:01:19.8]} 14... Qh5 {[%clk 0:01:30.7]} 15. Nc4 {[%clk
0:01:06.4]} 15... fxe4 {[%clk 0:01:27.2]} 16. Rxe4 {[%clk 0:00:44]} 16... Bf5
{[%clk 0:00:34.4]} 17. Rh4 {[%clk 0:00:37.3]} 17... Qg6 {[%clk 0:00:29]} 18.
Nxb6 {[%clk 0:00:36]} 18... axb6 {[%clk 0:00:29]} 19. dxe5 {[%clk 0:00:26.5]}
19... Nxe5 {[%clk 0:00:18.4]} 20. Nxe5 {[%clk 0:00:27.1]} 20... dxe5 {[%clk
0:00:20.3]} 21. Qh5 {[%clk 0:00:25.4]} 21... c6 {[%clk 0:00:18.8]} 22. Bb3
{[%clk 0:00:21.5]} 22... Kg7 {[%clk 0:00:12.5]} 23. Re1 {[%clk 0:00:18.4]} 23...
Rae8 {[%clk 0:00:08.2]} 24. a4 {[%clk 0:00:14.9]} 24... Rf6 {[%clk 0:00:06.7]}
25. Qxg6+ {[%clk 0:00:13.4]} 25... hxg6 {[%clk 0:00:07.5]} 26. Rb4 {[%clk
0:00:09.9]} 26... c5 {[%clk 0:00:09]} 27. Rb5 {[%clk 0:00:06.7]} 27... Bd7
{[%clk 0:00:07.1]} 28. Bd5 {[%clk 0:00:05.9]} 28... Bxb5 {[%clk 0:00:06.9]} 29.
axb5 {[%clk 0:00:07.8]} 29... Re7 {[%clk 0:00:06]} 30. c4 {[%clk 0:00:07.2]}
30... Rf4 {[%clk 0:00:04.2]} 31. Ra1 {[%clk 0:00:08]} 31... Rd4 {[%clk
0:00:04.5]} 32. Ra8 {[%clk 0:00:07.7]} 32... Rd2 {[%clk 0:00:05.1]} 33. Rd8
{[%clk 0:00:07.7]} 33... Rxb2 {[%clk 0:00:04.5]} 34. Rd6 {[%clk 0:00:08.5]}
34... e4 {[%clk 0:00:02.9]} 35. Rxb6 {[%clk 0:00:08.2]} 35... Rc2 {[%clk
0:00:02.6]} 36. Rd6 {[%clk 0:00:04.9]} 36... g5 {[%clk 0:00:02.2]} 37. g4 {[%clk
0:00:04.3]} 37... e3 {[%clk 0:00:03.5]} 38. fxe3 {[%clk 0:00:04.1]} 38... Rxe3
{[%clk 0:00:05.4]} 39. Bg2 {[%clk 0:00:03.5]} 39... Re1+ {[%clk 0:00:06.2]} 0-1

[Event "*** Titled Tuesday Blitz"]
[Site "Chess.com"]
[Date "2019.08.06"]
[Round "6"]
[White "Gareth-Bale11"]
[Black "iturrizaga"]
[Result "0-1"]
[WhiteElo "2747"]
[BlackElo "2945"]
[TimeControl "180+2"]
[EndTime "14:23:18 PDT"]
[Termination "iturrizaga won by resignation"]

1. d4 {[%clk 0:03:01]} 1... Nf6 {[%clk 0:03:00.6]} 2. Nf3 {[%clk 0:03:01.7]}
2... b6 {[%clk 0:03:01.7]} 3. c4 {[%clk 0:03:02.2]} 3... Bb7 {[%clk 0:03:03.1]}
4. g3 {[%clk 0:03:03.5]} 4... c5 {[%clk 0:03:02.9]} 5. d5 {[%clk 0:03:03.1]}
5... b5 {[%clk 0:03:03.9]} 6. Bg2 {[%clk 0:02:55]} 6... bxc4 {[%clk 0:03:04.7]}
7. Nc3 {[%clk 0:02:55.5]} 7... d6 {[%clk 0:03:05.1]} 8. Nd2 {[%clk 0:02:47.8]}
8... Nbd7 {[%clk 0:03:05.9]} 9. Nxc4 {[%clk 0:02:48.8]} 9... g6 {[%clk
0:03:06.9]} 10. O-O {[%clk 0:02:48.4]} 10... Bg7 {[%clk 0:03:07.8]} 11. e4
{[%clk 0:02:22.5]} 11... O-O {[%clk 0:03:08.4]} 12. Re1 {[%clk 0:02:23.6]} 12...
Ba6 {[%clk 0:03:07.6]} 13. Qa4 {[%clk 0:02:22.2]} 13... Bxc4 {[%clk 0:02:58]}
14. Qxc4 {[%clk 0:02:24.1]} 14... Qc7 {[%clk 0:02:54]} 15. h3 {[%clk 0:02:22.2]}
15... Rfb8 {[%clk 0:02:53.7]} 16. Rb1 {[%clk 0:02:15.8]} 16... Ne5 {[%clk
0:02:50.1]} 17. Qe2 {[%clk 0:02:16.1]} 17... c4 {[%clk 0:02:51.6]} 18. Be3
{[%clk 0:02:16.8]} 18... Nd3 {[%clk 0:02:46]} 19. Red1 {[%clk 0:02:16.8]} 19...
Nd7 {[%clk 0:02:45.6]} 20. Na4 {[%clk 0:02:04.5]} 20... Nb6 {[%clk 0:02:23.6]}
21. Nc3 {[%clk 0:01:32.1]} 21... Nd7 {[%clk 0:02:16.2]} 22. Qc2 {[%clk
0:01:19.6]} 22... Qa5 {[%clk 0:02:10.7]} 23. Na4 {[%clk 0:01:10.9]} 23... Nb4
{[%clk 0:02:03.2]} 24. Qxc4 {[%clk 0:00:57.2]} 24... Qxa4 {[%clk 0:01:58.9]} 25.
a3 {[%clk 0:00:48.5]} 25... Qc2 {[%clk 0:01:25.9]} 26. Rdc1 {[%clk 0:00:16.2]}
26... Qxc4 {[%clk 0:01:22.9]} 27. Rxc4 {[%clk 0:00:18.1]} 27... Nd3 {[%clk
0:01:24.4]} 28. b4 {[%clk 0:00:19.4]} 28... Rb7 {[%clk 0:01:15.4]} 29. f4 {[%clk
0:00:19]} 29... a5 {[%clk 0:01:05.1]} 30. Bf1 {[%clk 0:00:19.9]} 30... Nb2
{[%clk 0:01:05.5]} 31. Rc2 {[%clk 0:00:20.7]} 31... axb4 {[%clk 0:01:06.4]} 32.
axb4 {[%clk 0:00:21]} 32... Rxb4 {[%clk 0:01:06.1]} 33. Bc1 {[%clk 0:00:19.4]}
33... Rab8 {[%clk 0:01:01.8]} 34. e5 {[%clk 0:00:20.4]} 34... Nxe5 {[%clk
0:00:41.7]} 35. fxe5 {[%clk 0:00:19.1]} 35... Bxe5 {[%clk 0:00:43.6]} 36. Bh6
{[%clk 0:00:19.5]} 36... Bg7 {[%clk 0:00:43]} 37. Bg5 {[%clk 0:00:20.1]} 37...
Be5 {[%clk 0:00:21.8]} 38. Kg2 {[%clk 0:00:17.8]} 38... f6 {[%clk 0:00:22.2]}
39. Be3 {[%clk 0:00:17.8]} 39... Kf7 {[%clk 0:00:22.6]} 40. Bf2 {[%clk
0:00:18.5]} 40... Rb3 {[%clk 0:00:17.6]} 41. Ba6 {[%clk 0:00:18.8]} 41... Nd3
{[%clk 0:00:17.3]} 42. Rxb3 {[%clk 0:00:19.1]} 42... Rxb3 {[%clk 0:00:19.2]} 43.
Be3 {[%clk 0:00:18.3]} 43... Nb4 {[%clk 0:00:19.2]} 44. Bc4 {[%clk 0:00:14.4]}
44... Rxe3 {[%clk 0:00:18.3]} 0-1

[Event "*** Titled Tuesday Blitz"]
[Site "Chess.com"]
[Date "2019.08.06"]
[Round "6"]
[White "swayamsm"]
[Black "PIwan"]
[Result "0-1"]
[WhiteElo "2483"]
[BlackElo "2539"]
[TimeControl "180+2"]
[EndTime "14:23:24 PDT"]
[Termination "PIwan won by resignation"]

1. d4 {[%clk 0:03:01.9]} 1... d5 {[%clk 0:02:59.9]} 2. Nf3 {[%clk 0:02:59.2]}
2... Nf6 {[%clk 0:03:00.7]} 3. Bf4 {[%clk 0:02:56.9]} 3... e6 {[%clk 0:03:01.2]}
4. e3 {[%clk 0:02:53]} 4... Bd6 {[%clk 0:03:02.7]} 5. Bg3 {[%clk 0:02:53.9]}
5... c5 {[%clk 0:03:02.6]} 6. c4 {[%clk 0:02:52.3]} 6... cxd4 {[%clk 0:02:55.5]}
7. Nxd4 {[%clk 0:02:51.6]} 7... Qa5+ {[%clk 0:02:30]} 8. Nc3 {[%clk 0:02:50.8]}
8... Bxg3 {[%clk 0:02:14.3]} 9. hxg3 {[%clk 0:02:52.7]} 9... Ne4 {[%clk
0:02:14.9]} 10. Rc1 {[%clk 0:02:53.4]} 10... Nc6 {[%clk 0:01:53.8]} 11. cxd5
{[%clk 0:02:48.5]} 11... Nxc3 {[%clk 0:01:43.6]} 12. Rxc3 {[%clk 0:02:48.8]}
12... Qxd5 {[%clk 0:01:43.7]} 13. Nxc6 {[%clk 0:02:43.2]} 13... bxc6 {[%clk
0:01:45.1]} 14. Qxd5 {[%clk 0:02:35.2]} 14... cxd5 {[%clk 0:01:47]} 15. Rc7
{[%clk 0:02:32.8]} 15... O-O {[%clk 0:01:24.8]} 16. Bd3 {[%clk 0:02:33.2]} 16...
h6 {[%clk 0:01:23.8]} 17. Kd2 {[%clk 0:02:34.6]} 17... a5 {[%clk 0:01:17.3]} 18.
Rhc1 {[%clk 0:02:35.3]} 18... Ba6 {[%clk 0:01:18.1]} 19. Bxa6 {[%clk 0:02:31.8]}
19... Rxa6 {[%clk 0:01:20]} 20. Rb7 {[%clk 0:02:32.7]} 20... Kh7 {[%clk
0:01:15.1]} 21. Rcc7 {[%clk 0:02:33.8]} 21... Kg6 {[%clk 0:01:16.6]} 22. b3
{[%clk 0:02:32.4]} 22... h5 {[%clk 0:01:14.9]} 23. Kd3 {[%clk 0:02:31.1]} 23...
Kf6 {[%clk 0:01:15.9]} 24. Kd4 {[%clk 0:02:29.7]} 24... g5 {[%clk 0:01:07.5]}
25. a3 {[%clk 0:02:27.8]} 25... h4 {[%clk 0:01:07.5]} 26. gxh4 {[%clk
0:02:27.1]} 26... gxh4 {[%clk 0:01:09.4]} 27. f4 {[%clk 0:02:14.5]} 27... Rd6
{[%clk 0:00:42]} 28. Kc5 {[%clk 0:02:01.4]} 28... Rdd8 {[%clk 0:00:38.5]} 29.
Ra7 {[%clk 0:01:58.8]} 29... Rc8 {[%clk 0:00:33.8]} 30. Kc6 {[%clk 0:01:48.9]}
30... Rxc7+ {[%clk 0:00:32.4]} 31. Kxc7 {[%clk 0:01:50.8]} 31... Rg8 {[%clk
0:00:33.1]} 32. Rxa5 {[%clk 0:01:43.2]} 32... Rxg2 {[%clk 0:00:33.5]} 33. Rc5
{[%clk 0:01:44.6]} 33... Rg3 {[%clk 0:00:24]} 34. b4 {[%clk 0:01:38]} 34... Rxe3
{[%clk 0:00:24.1]} 35. a4 {[%clk 0:01:39.4]} 35... h3 {[%clk 0:00:15.9]} 36. a5
{[%clk 0:01:33]} 36... h2 {[%clk 0:00:11.8]} 37. Rc1 {[%clk 0:01:33.7]} 37... d4
{[%clk 0:00:13]} 38. Rh1 {[%clk 0:01:23]} 38... Re2 {[%clk 0:00:07.4]} 39. a6
{[%clk 0:01:23.6]} 39... d3 {[%clk 0:00:08.6]} 40. a7 {[%clk 0:01:24.5]} 40...
Ra2 {[%clk 0:00:08.3]} 41. Kb6 {[%clk 0:01:15.4]} 41... d2 {[%clk 0:00:07.8]}
42. b5 {[%clk 0:01:07.5]} 42... Kf5 {[%clk 0:00:08.7]} 43. Kb7 {[%clk
0:00:54.9]} 43... Kxf4 {[%clk 0:00:09.9]} 44. b6 {[%clk 0:00:52.9]} 44... Kg3
{[%clk 0:00:10.6]} 45. a8=Q {[%clk 0:00:49]} 45... Rxa8 {[%clk 0:00:10.8]} 46.
Kxa8 {[%clk 0:00:50.9]} 46... Kg2 {[%clk 0:00:11.9]} 47. Rxh2+ {[%clk 0:00:45]}
47... Kxh2 {[%clk 0:00:12.6]} 48. b7 {[%clk 0:00:46.9]} 48... d1=Q {[%clk
0:00:14]} 49. b8=Q+ {[%clk 0:00:48.8]} 49... Kh3 {[%clk 0:00:13.4]} 50. Qh8+
{[%clk 0:00:48.2]} 50... Kg3 {[%clk 0:00:14.5]} 51. Qg8+ {[%clk 0:00:49.7]}
51... Qg4 {[%clk 0:00:14.2]} 52. Qxf7 {[%clk 0:00:51.1]} 52... Qf3+ {[%clk
0:00:15.3]} 53. Qxf3+ {[%clk 0:00:51.6]} 53... Kxf3 {[%clk 0:00:17.2]} 0-1

[Event "*** Titled Tuesday Blitz"]
[Site "Chess.com"]
[Date "2019.08.06"]
[Round "6"]
[White "BlackBoarder"]
[Black "JonahWillow"]
[Result "1-0"]
[WhiteElo "2671"]
[BlackElo "2641"]
[TimeControl "180+2"]
[EndTime "14:23:28 PDT"]
[Termination "BlackBoarder won by checkmate"]

1. e4 {[%clk 0:03:01.9]} 1... c5 {[%clk 0:03:00.9]} 2. Nf3 {[%clk 0:03:02.7]}
2... e6 {[%clk 0:03:00.2]} 3. c3 {[%clk 0:03:03.6]} 3... d5 {[%clk 0:02:57.1]}
4. exd5 {[%clk 0:03:05.5]} 4... Qxd5 {[%clk 0:02:59]} 5. d4 {[%clk 0:03:06.5]}
5... Nf6 {[%clk 0:02:59.9]} 6. Be2 {[%clk 0:03:06.5]} 6... Be7 {[%clk
0:02:59.1]} 7. O-O {[%clk 0:03:06.6]} 7... O-O {[%clk 0:02:47.4]} 8. Be3 {[%clk
0:03:06.5]} 8... cxd4 {[%clk 0:02:47]} 9. Nxd4 {[%clk 0:03:03.1]} 9... e5 {[%clk
0:02:34.9]} 10. Nf3 {[%clk 0:02:57.1]} 10... Nc6 {[%clk 0:02:33.4]} 11. Qc2
{[%clk 0:02:43]} 11... Bg4 {[%clk 0:02:27.1]} 12. Rd1 {[%clk 0:02:40.8]} 12...
Qa5 {[%clk 0:02:17.9]} 13. h3 {[%clk 0:02:37.8]} 13... Bh5 {[%clk 0:02:18.8]}
14. Nbd2 {[%clk 0:02:34.4]} 14... Rfd8 {[%clk 0:02:14.3]} 15. Ne4 {[%clk
0:02:13.7]} 15... Bg6 {[%clk 0:02:04.2]} 16. Nxf6+ {[%clk 0:02:14.1]} 16... Bxf6
{[%clk 0:02:05.2]} 17. Qb3 {[%clk 0:02:15.1]} 17... Qc7 {[%clk 0:02:04.2]} 18.
Qa4 {[%clk 0:01:30.6]} 18... e4 {[%clk 0:01:47]} 19. Nd4 {[%clk 0:01:24.1]}
19... Ne5 {[%clk 0:01:44.4]} 20. Nb5 {[%clk 0:01:16.3]} 20... Qc6 {[%clk
0:01:38.5]} 21. Rxd8+ {[%clk 0:01:10.1]} 21... Rxd8 {[%clk 0:01:25.9]} 22. Qxa7
{[%clk 0:01:09.7]} 22... Nd3 {[%clk 0:01:24.5]} 23. Nd4 {[%clk 0:00:37.2]} 23...
Bxd4 {[%clk 0:01:21.5]} 24. Bxd4 {[%clk 0:00:35.2]} 24... Nf4 {[%clk 0:01:09.5]}
25. Bf1 {[%clk 0:00:34.2]} 25... h5 {[%clk 0:00:57.7]} 26. Qb6 {[%clk
0:00:27.9]} 26... Qd5 {[%clk 0:00:58.1]} 27. Be3 {[%clk 0:00:18.3]} 27... Nd3
{[%clk 0:00:57.9]} 28. c4 {[%clk 0:00:17.7]} 28... Qd7 {[%clk 0:00:54.6]} 29. b4
{[%clk 0:00:18.6]} 29... Rc8 {[%clk 0:00:51.4]} 30. c5 {[%clk 0:00:19]} 30...
Rc6 {[%clk 0:00:50.5]} 31. Qb5 {[%clk 0:00:13.7]} 31... Bf5 {[%clk 0:00:51.6]}
32. Qc4 {[%clk 0:00:12.7]} 32... Ne5 {[%clk 0:00:50.1]} 33. Qc3 {[%clk
0:00:14.1]} 33... Qe7 {[%clk 0:00:38.9]} 34. b5 {[%clk 0:00:14.2]} 34... Rg6
{[%clk 0:00:40.6]} 35. Kh2 {[%clk 0:00:11.5]} 35... Qh4 {[%clk 0:00:41.6]} 36.
Qxe5 {[%clk 0:00:11.3]} 36... Bg4 {[%clk 0:00:17]} 37. Qg3 {[%clk 0:00:06.6]}
37... Qf6 {[%clk 0:00:13.8]} 38. hxg4 {[%clk 0:00:07.6]} 38... Qxa1 {[%clk
0:00:14.7]} 39. Qb8+ {[%clk 0:00:07.6]} 39... Kh7 {[%clk 0:00:15.5]} 40. gxh5
{[%clk 0:00:08.6]} 40... Re6 {[%clk 0:00:12.8]} 41. Bc4 {[%clk 0:00:08.9]} 41...
Re5 {[%clk 0:00:11.7]} 42. Bxf7 {[%clk 0:00:08.5]} 42... g5 {[%clk 0:00:03.2]}
43. Qg8+ {[%clk 0:00:08.4]} 43... Kh6 {[%clk 0:00:03.9]} 44. Qg6# {[%clk
0:00:10.3]} 1-0

[Event "*** Titled Tuesday Blitz"]
[Site "Chess.com"]
[Date "2019.08.06"]
[Round "6"]
[White "Quiet_Desperation"]
[Black "Faustregel"]
[Result "0-1"]
[WhiteElo "2488"]
[BlackElo "2523"]
[TimeControl "180+2"]
[EndTime "14:23:30 PDT"]
[Termination "Faustregel won on time"]

1. e4 {[%clk 0:03:01.9]} 1... c5 {[%clk 0:02:58.8]} 2. Nf3 {[%clk 0:03:03.3]}
2... d6 {[%clk 0:02:59.8]} 3. d4 {[%clk 0:03:04.7]} 3... cxd4 {[%clk 0:03:01.3]}
4. Nxd4 {[%clk 0:03:06.6]} 4... Nf6 {[%clk 0:03:02.9]} 5. Nc3 {[%clk 0:03:08.1]}
5... Nc6 {[%clk 0:03:04.4]} 6. Bg5 {[%clk 0:03:06.5]} 6... Bd7 {[%clk
0:03:05.2]} 7. Nb3 {[%clk 0:03:04.3]} 7... Rc8 {[%clk 0:03:00.4]} 8. f3 {[%clk
0:03:03.5]} 8... h6 {[%clk 0:03:01.1]} 9. Be3 {[%clk 0:03:03.8]} 9... e6 {[%clk
0:02:57.5]} 10. Qd2 {[%clk 0:03:04.7]} 10... a6 {[%clk 0:02:54.8]} 11. O-O-O
{[%clk 0:03:05.3]} 11... b5 {[%clk 0:02:56.2]} 12. g4 {[%clk 0:03:00.4]} 12...
Na5 {[%clk 0:02:54]} 13. Nxa5 {[%clk 0:02:57.6]} 13... Qxa5 {[%clk 0:02:54.3]}
14. Kb1 {[%clk 0:02:56.2]} 14... b4 {[%clk 0:02:52.9]} 15. Ne2 {[%clk
0:02:55.9]} 15... d5 {[%clk 0:02:54]} 16. e5 {[%clk 0:02:30.5]} 16... Ng8 {[%clk
0:02:54.3]} 17. h4 {[%clk 0:02:19.3]} 17... Ne7 {[%clk 0:02:44.1]} 18. Nd4
{[%clk 0:02:16.6]} 18... Nc6 {[%clk 0:02:41.9]} 19. f4 {[%clk 0:02:14]} 19...
Nxd4 {[%clk 0:02:40.1]} 20. Bxd4 {[%clk 0:02:14.9]} 20... Bc5 {[%clk 0:02:38.7]}
21. Be2 {[%clk 0:01:42.7]} 21... Bb5 {[%clk 0:02:12.3]} 22. Bxb5+ {[%clk
0:01:41.3]} 22... axb5 {[%clk 0:02:09.6]} 23. Bxc5 {[%clk 0:01:38.8]} 23... Rxc5
{[%clk 0:02:10]} 24. f5 {[%clk 0:01:28.9]} 24... O-O {[%clk 0:02:06.9]} 25. Rh3
{[%clk 0:01:28.8]} 25... Ra8 {[%clk 0:01:46.7]} 26. a3 {[%clk 0:01:29.7]} 26...
Rc4 {[%clk 0:01:39.3]} 27. fxe6 {[%clk 0:01:18.9]} 27... fxe6 {[%clk 0:01:38.8]}
28. g5 {[%clk 0:01:20.4]} 28... h5 {[%clk 0:01:35]} 29. g6 {[%clk 0:00:51.3]}
29... Rg4 {[%clk 0:01:33.9]} 30. Qe2 {[%clk 0:00:32.3]} 30... Qc7 {[%clk
0:01:05]} 31. axb4 {[%clk 0:00:26.5]} 31... Rf8 {[%clk 0:00:48.4]} 32. Rc3
{[%clk 0:00:24.9]} 32... Qa7 {[%clk 0:00:45]} 33. Qxb5 {[%clk 0:00:16.6]} 33...
Rxg6 {[%clk 0:00:45.2]} 34. Qe2 {[%clk 0:00:16.2]} 34... Rg4 {[%clk 0:00:45.3]}
35. b5 {[%clk 0:00:15.3]} 35... g6 {[%clk 0:00:40.4]} 36. Rb3 {[%clk 0:00:14.2]}
36... Re4 {[%clk 0:00:40.1]} 37. Qg2 {[%clk 0:00:13.5]} 37... Rg4 {[%clk
0:00:38.5]} 38. Qe2 {[%clk 0:00:14.1]} 38... Qb6 {[%clk 0:00:32.9]} 39. Qd3
{[%clk 0:00:14.2]} 39... Kg7 {[%clk 0:00:28.7]} 40. Qc3 {[%clk 0:00:14.1]} 40...
Rc4 {[%clk 0:00:27.4]} 41. Qg3 {[%clk 0:00:13.2]} 41... Rf2 {[%clk 0:00:26.2]}
42. Rc1 {[%clk 0:00:11]} 42... Rg4 {[%clk 0:00:24.9]} 43. Qd3 {[%clk 0:00:10.5]}
43... Rxh4 {[%clk 0:00:22.6]} 44. Qc3 {[%clk 0:00:10.5]} 44... Rc4 {[%clk
0:00:22.9]} 45. Qh3 {[%clk 0:00:11.4]} 45... Rf5 {[%clk 0:00:23.7]} 46. Qg3
{[%clk 0:00:11.8]} 46... h4 {[%clk 0:00:23.7]} 47. Qh3 {[%clk 0:00:12.6]} 47...
g5 {[%clk 0:00:24.6]} 48. Rg1 {[%clk 0:00:11.4]} 48... Qxg1+ {[%clk 0:00:24.4]}
0-1